bitfinex-derivatives/quotes_ETHF0:USTF0_20241008
["timestamp","ask_amount","ask_price","bid_price","bid_amount"]
[1728376006828,0.4112,2432.5,2432.2,3.22]
[1728376007027,0.8179,2432.7,2432.3,0.41122]
[1728376007028,0.41119,2432.6,2432.3,0.41122]
[1728376007232,0.41119,2432.6,2432.4,0.41121]
[1728376007532,3.2078,2433.1,2432.5,4.1112]
[1728376007729,3.6189,2433.1,2432.8,0.41114]
[1728376008032,0.41112,2433.0,2432.7,0.41115]
[1728376008226,0.41112,2433.0,2432.9,3.2078]
[1728376008825,0.41112,2433.0,2432.7,0.83285]
[1728376009223,0.4166,2433.3,2432.7,0.83285]
[1728376009425,0.41113,2432.9,2432.7,4.04065]
[1728376010125,0.41112,2433.0,2432.7,4.04065]
[1728376010731,0.4166,2433.3,2432.7,3.6295]
[1728376010928,0.41111,2433.1,2432.8,0.41114]
[1728376011325,0.41109,2433.2,2432.9,0.41112]
[1728376011530,0.41109,2433.2,2432.9,3.63112]
[1728376011730,0.4166,2433.3,2432.7,6.8495]
[1728376012038,0.41113,2433.0,2432.7,7.26066]
[1728376012331,0.4166,2433.3,2432.7,6.8495]
[1728376012542,0.41115,2432.9,2432.7,6.8495]
[1728376012734,0.41115,2432.8,2432.7,6.8495]
[1728376013131,1.02771,2433.2,2432.7,3.6295]
[1728376013337,0.41116,2432.7,2432.6,0.3971]
[1728376014231,0.41116,2432.8,2432.6,0.3971]
[1728376016138,0.41116,2432.7,2432.6,0.3971]
[1728376016330,0.41119,2432.6,2432.4,3.2078]
[1728376016828,0.4112,2432.5,2432.4,3.2078]
[1728376017028,0.4112,2432.5,2432.3,0.3929]
[1728376017430,0.4112,2432.5,2432.4,3.2078]
[1728376017930,0.4112,2432.5,2432.3,0.3929]
[1728376018129,0.41121,2432.4,2432.3,0.3929]
[1728376018524,1.02792,2432.7,2432.1,7.25006]
[1728376018730,0.41123,2432.4,2432.1,7.25006]
[1728376018939,0.41123,2432.4,2432.2,0.41124]
[1728376019440,40.8,2432.7,2432.3,3.22]
[1728376019634,0.4099,2432.8,2432.4,0.4112]
[1728376019936,0.82105,2432.8,2432.5,0.41119]
[1728376020130,0.4099,2432.8,2432.5,0.3946]
[1728376020532,0.82105,2432.8,2432.6,0.41117]
[1728376020763,0.4099,2432.8,2432.5,0.3946]
[1728376020931,0.41116,2432.7,2432.5,0.3946]
[1728376021435,0.41116,2432.7,2432.5,0.80579]
[1728376021640,0.41116,2432.7,2432.5,0.3946]
[1728376021832,0.82105,2432.8,2432.5,0.80578]
[1728376022436,0.82105,2432.8,2432.6,0.41118]
[1728376023029,0.4099,2432.8,2432.6,0.4245]
[1728376023236,0.41118,2432.6,2432.5,0.3946]
[1728376024527,0.41114,2432.9,2432.5,3.6146]
[1728376024732,0.41114,2432.9,2432.7,3.61896]
[1728376025036,1.41573,2433.2,2432.7,3.2078]
[1728376025333,0.41112,2433.0,2432.8,0.41115]
[1728376025538,0.41112,2433.0,2432.7,6.4278]
[1728376025738,1.41573,2433.2,2432.7,6.83895]
[1728376025932,1.41573,2433.2,2432.7,6.4278]
[1728376026133,1.41573,2433.2,2432.7,3.2078]
[1728376026339,0.41114,2432.9,2432.7,3.2078]
[1728376026528,0.41115,2432.8,2432.7,3.2078]
[1728376027334,0.41115,2432.8,2432.6,0.4199]
[1728376027536,0.41116,2432.7,2432.6,0.4199]
[1728376027840,0.41115,2432.8,2432.6,0.4199]
[1728376028236,0.41115,2432.8,2432.6,0.83108]
[1728376028734,1.02775,2433.1,2432.6,0.4199]
[1728376028935,0.41116,2432.8,2432.6,0.83108]
[1728376029141,0.41116,2432.7,2432.6,0.4199]
[1728376029737,0.41118,2432.6,2432.5,3.6024]
[1728376029943,0.41118,2432.6,2432.5,3.2078]
[1728376030451,3.2078,2433.0,2432.5,3.2078]
[1728376030452,0.41118,2432.7,2432.5,3.2078]
[1728376030739,1.85843,2432.9,2432.5,3.6093]
[1728376030943,0.41118,2432.6,2432.5,3.6093]
[1728376031443,1.85843,2432.9,2432.5,3.6093]
[1728376031639,1.85843,2432.9,2432.5,6.8293]
[1728376031840,0.41118,2432.6,2432.5,6.8293]
[1728376032238,0.41118,2432.7,2432.5,7.24049]
[1728376032542,0.41118,2432.7,2432.6,0.3905]
[1728376033643,0.41116,2432.8,2432.6,0.80168]
[1728376034442,0.41116,2432.7,2432.6,0.3905]
[1728376034743,0.41118,2432.6,2432.5,0.4015]
[1728376035446,1.42819,2432.8,2432.3,3.22]
[1728376035848,0.41119,2432.6,2432.4,0.41121]
[1728376036039,0.83714,2432.9,2432.7,0.41116]
[1728376036247,0.41114,2432.9,2432.8,0.7971]
[1728376036750,0.41114,2432.9,2432.8,1.20825]
[1728376036952,0.41114,2432.9,2432.8,0.7971]
[1728376037851,0.41114,2432.9,2432.8,0.4095]
[1728376038549,0.41112,2433.0,2432.8,0.82065]
[1728376039252,1.02774,2433.2,2432.8,0.4095]
[1728376039442,0.41113,2432.9,2432.8,0.4095]
[1728376040153,1.02774,2433.2,2432.8,0.4095]
[1728376040352,0.41112,2433.0,2432.8,0.82065]
[1728376041250,0.41113,2432.9,2432.8,0.4095]
[1728376043045,0.41118,2432.6,2432.5,3.2078]
[1728376043248,1.02774,2433.2,2432.4,0.4159]
[1728376043249,0.3987,2432.8,2432.4,0.4159]
[1728376043546,0.4112,2432.5,2432.4,0.4159]
[1728376043943,1.83183,2432.7,2432.3,0.4214]
[1728376044149,0.41121,2432.4,2432.3,0.4214]
[1728376046852,0.8039,2432.7,2432.1,3.6359]
[1728376047050,0.41125,2432.2,2432.1,3.6359]
[1728376048255,0.41125,2432.2,2432.1,0.4159]
[1728376051751,1.02804,2432.5,2432.1,0.4159]
[1728376051944,0.41125,2432.2,2432.1,0.4159]
[1728376052147,0.41127,2432.1,2431.9,7.83294716]
[1728376052351,0.41127,2432.1,2431.7,3.2078]
[1728376052352,0.41132,2431.8,2431.7,3.2078]
[1728376053750,1.82982,2432.0,2431.4,3.61918]
[1728376053751,0.41136,2431.6,2431.4,3.61918]
[1728376054151,0.41137,2431.5,2431.4,3.2078]
[1728376054358,0.41136,2431.6,2431.4,3.2078]
[1728376054556,0.41136,2431.6,2431.4,3.61918]
[1728376055057,0.41137,2431.5,2431.3,4.0556]
[1728376055461,0.41138,2431.4,2431.3,0.8356]
[1728376057259,1.82982,2432.0,2431.3,0.8356]
[1728376057260,3.2078,2432.2,2431.3,14.1684]
[1728376057458,0.25134736,2431.9,2431.7,3.61912]
[1728376057760,0.66264736,2431.9,2431.8,0.8253]
[1728376057987,0.4113,2431.9,2431.8,0.8253]
[1728376058155,1.43933,2432.3,2431.8,0.8253]
[1728376058363,0.4113,2431.9,2431.8,0.8253]
[1728376058557,0.4113,2431.9,2431.8,0.4264]
[1728376058763,0.41131,2431.9,2431.6,0.4037]
[1728376059461,0.4168,2432.1,2431.7,3.2078]
[1728376059659,1.22979,2432.0,2431.6,0.81505]
[1728376059864,0.4113,2431.9,2431.6,0.4037]
[1728376060458,1.22979,2432.0,2431.6,0.81504]
[1728376061764,1.22979,2432.0,2431.7,3.2078]
[1728376062257,0.4113,2431.9,2431.7,3.2078]
[1728376063171,0.4113,2431.9,2431.7,3.61913]
[1728376063863,0.4113,2431.9,2431.7,3.2078]
[1728376064256,0.8185,2432.0,2431.7,3.2078]
[1728376064257,0.41132,2431.8,2431.7,3.2078]
[1728376064964,0.8185,2432.0,2431.5,0.3878]
[1728376065163,0.41135,2431.6,2431.5,0.3878]
[1728376065965,0.4093,2431.7,2431.3,3.6168]
[1728376066263,0.4093,2431.7,2431.3,0.8204]
[1728376066264,0.41138,2431.5,2431.3,0.8204]
[1728376068867,0.4093,2431.7,2431.3,0.409]
[1728376069063,0.65618642,2431.7,2431.3,3.6168]
[1728376069269,0.41138,2431.4,2431.3,3.6168]
[1728376069470,0.41138,2431.4,2431.3,3.2078]
[1728376070265,0.8428,2431.5,2431.3,3.61919]
[1728376070266,1.25417,2431.5,2431.3,3.61919]
[1728376072576,0.41138,2431.4,2431.3,3.2078]
[1728376072863,1.25418,2431.5,2431.3,3.6192]
[1728376073473,0.41138,2431.4,2431.3,3.2078]
[1728376079675,0.66343278,2431.4,2431.3,3.2078]
[1728376080078,0.41138,2431.4,2431.3,3.2078]
[1728376081577,0.8428,2431.5,2431.3,3.6192]
[1728376081765,0.83718,2431.5,2431.3,3.6192]
[1728376082367,0.41138,2431.4,2431.3,3.6192]
[1728376082573,0.41137,2431.5,2431.3,3.6192]
[1728376083174,0.4093,2431.7,2431.3,3.2078]
[1728376083484,0.41131,2431.9,2431.7,0.41133]
[1728376083769,3.63,2432.0,2431.3,3.2078]
[1728376083770,3.61909,2432.0,2431.8,1.24731]
[1728376083974,3.61909,2432.0,2431.9,0.4113]
[1728376083975,3.2078,2432.0,2431.9,0.4113]
[1728376084172,3.2078,2432.0,2431.8,1.2473]
[1728376084375,3.61909,2432.0,2431.8,0.836]
[1728376084598,3.61909,2432.0,2431.8,1.24731]
[1728376084968,3.2078,2432.0,2431.8,1.24731]
[1728376085268,0.41128,2432.0,2431.8,1.24731]
[1728376085467,0.422,2432.1,2431.8,1.24731]
[1728376085862,0.41128,2432.0,2431.8,1.24731]
[1728376086479,1.45029,2432.3,2431.8,1.24731]
[1728376086480,3.2078,2432.5,2431.8,0.836]
[1728376086781,0.4022,2432.3,2431.8,0.836]
[1728376087271,0.8189,2432.4,2431.8,0.836]
[1728376087272,0.8189,2432.4,2431.9,3.2078]
[1728376087480,0.41118,2432.6,2432.2,6.4278]
[1728376087772,0.7961,2432.7,2432.3,0.8215]
[1728376087773,0.41121,2432.5,2432.3,0.8215]
[1728376088292,0.41121,2432.5,2432.3,1.23273]
[1728376088578,0.7961,2432.7,2432.3,0.8215]
[1728376088776,0.81338,2432.7,2432.4,0.41121]
[1728376089179,0.81338,2432.7,2432.5,0.4112]
[1728376089379,0.4022,2432.7,2432.4,0.3927]
[1728376089672,0.41119,2432.6,2432.4,0.80391]
[1728376089872,0.81337,2432.7,2432.5,0.4112]
[1728376090076,0.81337,2432.7,2432.4,0.8039]
[1728376090273,0.4022,2432.7,2432.4,0.3927]
[1728376090576,0.41119,2432.6,2432.4,0.3927]
[1728376091268,0.41119,2432.6,2432.4,0.80391]
[1728376092978,0.41118,2432.6,2432.4,0.80391]
[1728376093275,0.4112,2432.5,2432.4,0.3927]
[1728376095379,0.4022,2432.7,2432.4,0.3927]
[1728376095695,0.4112,2432.5,2432.4,0.3927]
[1728376096682,0.4022,2432.7,2432.3,0.8215]
[1728376096982,0.41121,2432.4,2432.3,0.4147]
[1728376098482,0.41119,2432.6,2432.4,0.41121]
[1728376098682,0.41119,2432.6,2432.5,0.3962]
[1728376098877,0.24324783,2432.8,2432.5,0.3962]
[1728376099181,0.41117,2432.7,2432.5,4.0152]
[1728376100082,0.41117,2432.7,2432.5,0.8074]
[1728376100287,0.41118,2432.6,2432.5,0.3962]
[1728376101390,0.41117,2432.7,2432.5,0.80739]
[1728376101989,1.49747213,2432.9,2432.5,0.3962]
[1728376102184,1.49747213,2432.9,2432.5,0.80739]
[1728376102185,0.41116,2432.7,2432.5,0.80739]
[1728376102486,1.49747213,2432.9,2432.3,0.4147]
[1728376102702,1.02787,2432.8,2432.3,0.4147]
[1728376102878,0.41119,2432.6,2432.4,0.41121]
[1728376103580,1.02787,2432.8,2432.3,0.82591]
[1728376104083,0.4112,2432.5,2432.3,0.82591]
[1728376104775,1.49747213,2432.9,2432.3,0.82591]
[1728376104985,1.02792,2432.7,2432.3,0.4147]
[1728376105185,0.41124,2432.3,2432.1,0.41126]
[1728376105488,1.02798,2432.6,2432.1,0.81426]
[1728376105780,0.3869,2432.5,2432.1,0.403]
[1728376105984,0.41125,2432.3,2432.1,0.403]
[1728376106180,0.41125,2432.3,2432.1,0.81426]
[1728376107689,0.41125,2432.2,2432.1,0.81426]
[1728376108183,0.41125,2432.2,2432.1,0.403]
[1728376108582,0.41129,2432.0,2431.8,3.6191]
[1728376108882,0.4122,2432.1,2431.8,3.2078]
[1728376109082,0.4122,2432.1,2431.9,0.4113]
[1728376109083,0.82347,2432.1,2431.9,0.4113]
[1728376110287,0.4122,2432.1,2431.8,3.2078]
[1728376110490,0.4113,2431.9,2431.7,1.21503]
[1728376110676,0.41132,2431.8,2431.7,1.21503]
[1728376110876,0.41132,2431.8,2431.7,0.8037]
[1728376111487,3.22,2431.9,2431.3,0.4161]
[1728376111678,3.22,2431.9,2431.3,0.7937]
[1728376111679,0.41137,2431.5,2431.3,0.7937]
[1728376111879,0.798,2431.7,2431.3,0.7937]
[1728376112083,0.41138,2431.5,2431.3,1.2051]
[1728376113188,0.41136,2431.6,2431.4,0.41138]
[1728376113385,0.41137,2431.5,2431.3,1.20509]
[1728376114886,0.41138,2431.4,2431.3,0.7937]
[1728376115281,0.41138,2431.5,2431.3,1.2051]
[1728376115780,0.798,2431.7,2431.3,0.7937]
[1728376116187,0.41137,2431.5,2431.3,1.2051]
[1728376116383,0.41137,2431.5,2431.3,1.20509]
[1728376116582,0.41138,2431.5,2431.2,3.6192]
[1728376116784,0.41138,2431.5,2431.3,0.4114]
[1728376116989,0.41138,2431.5,2431.2,3.2078]
[1728376116990,0.41135,2431.6,2431.2,3.2078]
[1728376117190,0.41139,2431.4,2431.2,3.2078]
[1728376118491,1.04548517,2431.7,2431.2,3.2078]
[1728376118687,0.4114,2431.3,2431.2,3.2078]
[1728376120400,7.3328,2431.3,2430.9,3.2078]
[1728376120584,1.1934,2431.2,2430.9,3.2078]
[1728376121192,1.1934,2431.2,2430.9,3.61926]
[1728376121390,1.60482,2431.2,2430.9,3.61926]
[1728376121889,0.41144,2431.1,2430.9,3.61926]
[1728376122091,0.41144,2431.1,2430.9,3.2078]
[1728376122489,1.1934,2431.2,2430.9,3.2078]
[1728376122692,1.60482,2431.2,2430.9,3.61926]
[1728376123096,0.41145,2431.1,2430.9,3.61926]
[1728376123493,0.41145,2431.1,2430.9,3.2078]
[1728376123795,0.41145,2431.1,2430.9,3.61927]
[1728376124398,1.60483,2431.2,2430.9,3.61927]
[1728376124591,0.41143,2431.1,2430.9,3.61927]
[1728376126297,0.41145,2431.0,2430.9,3.2078]
[1728376126517,0.41144,2431.1,2430.9,3.61927]
[1728376126698,1.1934,2431.2,2430.9,3.2078]
[1728376127098,0.41145,2431.1,2430.9,3.61926]
[1728376127703,0.41145,2431.0,2430.9,3.2078]
[1728376132699,0.41145,2431.0,2430.9,3.6065]
[1728376133806,0.41145,2431.0,2430.9,4.0175]
[1728376139913,1.1934,2431.2,2430.9,4.0175]
[1728376140122,3.2078,2431.5,2430.9,5.4975]
[1728376140313,0.80479,2431.4,2431.2,0.41141]
[1728376140711,0.3934,2431.4,2430.9,5.4975]
[1728376140912,5.71563339,2431.5,2431.3,0.4114]
[1728376141112,5.71563339,2431.5,2431.4,0.3936]
[1728376141113,5.32643339,2431.5,2431.4,0.3936]
[1728376141311,3.84643339,2431.5,2431.4,0.80498]
[1728376141515,0.63863339,2431.5,2431.4,0.80498]
[1728376141710,5.32896,2431.6,2431.5,0.41137]
[1728376141711,0.3934,2431.6,2431.5,0.41137]
[1728376142009,0.3934,2431.6,2431.4,0.80497]
[1728376142408,0.3934,2431.6,2431.4,0.3936]
[1728376142605,0.41138,2431.4,2431.3,0.3941]
[1728376142805,0.4114,2431.3,2431.1,0.41142]
[1728376143016,1.8734,2431.6,2431.2,0.41141]
[1728376143017,1.89139,2431.4,2431.2,0.41141]
[1728376143211,0.41139,2431.4,2431.2,0.41141]
[1728376143414,0.41139,2431.4,2431.3,0.4204]
[1728376144117,1.8734,2431.6,2431.3,0.4204]
[1728376144410,0.41138,2431.5,2431.3,0.8318]
[1728376144616,0.24494133,2431.7,2431.3,0.4204]
[1728376144916,0.7766,2431.8,2431.5,0.41136]
[1728376144917,2.6633,2431.8,2431.5,0.41136]
[1728376145111,0.41134,2431.7,2431.4,0.8172]
[1728376145311,0.41133,2431.7,2431.4,1.22858]
[1728376145722,0.41137,2431.5,2431.4,0.8172]
[1728376146012,0.41138,2431.4,2431.3,0.4204]
[1728376146213,1.20438,2431.4,2431.3,0.4204]
[1728376146409,0.41143,2431.2,2431.0,0.4269]
[1728376146635,0.41143,2431.2,2431.0,0.8442]
[1728376147307,0.41143,2431.2,2431.0,1.25565]
[1728376147509,1.8934,2431.3,2430.8,1.43994799]
[1728376147510,1.89143,2431.1,2430.8,1.43994799]
[1728376147711,0.4134,2431.3,2430.8,1.44576799]
[1728376147712,1.89147,2430.9,2430.8,1.44576799]
[1728376148016,1.89147,2430.9,2430.8,1.02846799]
[1728376148511,4.02137,2430.9,2430.8,1.02846799]
[1728376149215,8.13497,2430.9,2430.8,1.02846799]
[1728376149812,14.38101154,2430.9,2430.8,1.02846799]
[1728376150025,14.38101154,2430.9,2430.3,1.12467958]
[1728376150026,0.41155,2430.4,2430.3,1.12467958]
[1728376150227,0.41155,2430.4,2430.3,1.02867958]
[1728376150516,0.41155,2430.5,2430.3,1.02867958]
[1728376154414,0.41155,2430.4,2430.3,1.02867958]
[1728376156923,0.41154,2430.5,2430.3,1.02867958]
[1728376159018,0.41155,2430.5,2430.3,1.02867958]
[1728376160513,0.24275852,2430.6,2430.3,1.44023958]
[1728376160817,0.81149,2430.8,2430.5,0.41152]
[1728376161017,0.81149,2430.8,2430.6,0.7938]
[1728376161225,0.8115,2430.8,2430.6,0.7938]
[1728376161813,0.4115,2430.7,2430.6,0.7938]
[1728376163220,0.64463865,2430.8,2430.3,1.84664958]
[1728376163221,0.41154,2430.5,2430.3,1.84664958]
[1728376163529,0.41154,2430.5,2430.4,0.3922]
[1728376167016,3.21,2430.7,2430.3,1.45057958]
[1728376167254,0.41155,2430.4,2430.3,1.45057958]
[1728376167430,0.41155,2430.5,2430.3,1.86257958]
[1728376168725,44.01,2430.7,2430.3,1.86257958]
[1728376168726,0.41155,2430.4,2430.3,1.86257958]
[1728376169526,0.41155,2430.4,2430.3,1.02867958]
[1728376169827,1.22515,2430.4,2430.3,1.02867958]
[1728376170425,5.33955,2430.4,2430.3,1.02867958]
[1728376172529,5.5899877,2430.4,2430.3,1.02867958]
[1728376175629,5.5899877,2430.4,2430.3,0.05707416]
[1728376176529,7.0699877,2430.4,2430.3,0.05707416]
[1728376180831,16.2777877,2430.4,2430.3,0.05707416]
[1728376182033,15.8662377,2430.4,2429.9,0.8004]
[1728376182249,0.41162,2430.0,2429.9,0.8004]
[1728376182732,0.82362,2430.0,2429.9,0.8004]
[1728376183237,0.412,2430.0,2429.9,0.8004]
[1728376183474,42.69162,2430.1,2429.9,0.8004]
[1728376183933,42.28,2430.1,2429.9,0.8004]
[1728376184140,1.89159,2430.2,2430.0,0.41161]
[1728376184344,1.89159,2430.2,2430.1,0.3974]
[1728376184534,42.28,2430.2,2430.1,0.3974]
[1728376185037,2.1419977,2430.4,2430.1,0.80899]
[1728376186032,2.1419977,2430.4,2430.2,0.41159]
[1728376186436,2.1419977,2430.4,2430.3,0.3914]
[1728376187034,0.2504377,2430.4,2430.3,0.80297]
[1728376187236,0.41154,2430.5,2430.3,0.3914]
[1728376187437,1.89154,2430.5,2430.4,0.3968]
[1728376191548,1.89154,2430.5,2429.8,0.50764]
[1728376191549,0.4116,2430.1,2429.8,0.50764]
[1728376191841,0.41162,2430.0,2429.9,1.2295]
[1728376192646,1.48,2430.0,2429.9,1.2295]
[1728376193446,1.89162,2430.0,2429.9,1.2295]
[1728376197743,2.14042008,2430.0,2429.9,1.2295]
[1728376200552,1.72880008,2430.0,2429.6,0.41168]
[1728376200747,0.41164,2429.9,2429.6,0.41168]
[1728376201758,1.89166,2429.8,2429.6,0.41168]
[1728376202161,1.02905,2430.1,2429.2,3.2078]
[1728376202162,1.48,2429.7,2429.2,3.2078]
[1728376202352,1.48,2429.4,2429.2,3.2078]
[1728376202549,1.89172,2429.4,2429.2,3.61955]
[1728376202854,1.89172,2429.4,2429.2,7.3246]
[1728376203155,1.48,2429.4,2429.3,4.52854]
[1728376203354,1.48,2429.6,2429.3,4.1168]
[1728376203554,1.8917,2429.6,2429.4,0.83911]
[1728376203953,0.41171,2429.5,2429.4,0.83911]
[1728376204360,0.41171,2429.5,2429.4,4.95511]
[1728376204663,0.41171,2429.5,2429.4,4.5434]
[1728376204957,0.41169,2429.6,2429.4,0.83911]
[1728376205152,1.89169,2429.6,2429.4,0.83911]
[1728376205352,1.48,2429.5,2429.3,0.3878]
[1728376205553,0.41174,2429.3,2429.2,3.2078]
[1728376205752,1.89174,2429.3,2429.2,3.2078]
[1728376208163,1.48,2429.3,2429.2,3.2078]
[1728376208459,1.89169,2429.6,2429.4,0.41172]
[1728376208665,1.48,2429.6,2429.5,0.81801]
[1728376208984,0.3996,2429.8,2429.5,3.6141]
[1728376209167,0.3996,2429.8,2429.6,0.8217]
[1728376209168,1.89168,2429.7,2429.6,0.8217]
[1728376209354,1.48,2429.7,2429.6,0.8217]
[1728376210563,3.62165,2429.9,2429.6,1.23339]
[1728376210764,3.21,2429.9,2429.6,0.8217]
[1728376210957,0.79,2430.0,2429.6,0.8217]
[1728376211261,3.21,2429.9,2429.6,0.8217]
[1728376211468,3.21,2429.9,2429.8,0.41165]
[1728376211873,3.21,2429.9,2429.7,0.41167]
[1728376212255,3.21,2429.9,2429.8,0.41165]
[1728376212661,3.21,2429.9,2429.7,0.41166]
[1728376213059,3.21,2429.9,2429.8,0.41165]
[1728376213867,3.21,2430.1,2429.9,0.41163]
[1728376214171,4.45118,2430.3,2430.0,0.41161]
[1728376214359,3.21,2430.1,2430.0,0.819]
[1728376214567,0.41162,2430.0,2429.8,3.2078]
[1728376214875,3.21,2430.1,2429.8,3.2078]
[1728376215170,0.41163,2430.0,2429.8,3.2078]
[1728376215564,3.62161,2430.1,2429.8,3.61945]
[1728376215769,4.0396,2430.3,2429.8,3.2078]
[1728376215967,0.41159,2430.2,2429.9,0.41163]
[1728376216171,4.0396,2430.3,2430.0,0.41161]
[1728376216172,4.45118,2430.3,2430.0,0.41161]
[1728376216771,4.45118,2430.3,2430.1,0.4179]
[1728376216973,4.0396,2430.3,2430.1,0.4179]
[1728376217167,4.28968923,2430.3,2430.1,0.8295]
[1728376217366,0.41159,2430.2,2430.1,0.4179]
[1728376217667,4.70126923,2430.3,2430.1,0.4179]
[1728376217864,4.28968923,2430.3,2430.1,0.4179]
[1728376218167,0.4116,2430.1,2430.0,0.4036]
[1728376218760,0.4116,2430.1,2429.9,0.4179]
[1728376220374,3.21,2430.2,2429.8,3.2078]
[1728376220570,3.21,2430.2,2429.7,1.22606]
[1728376220571,0.41163,2430.0,2429.7,1.22606]
[1728376220776,0.3965,2429.9,2429.7,1.22606]
[1728376221068,4.40595,2429.9,2429.7,0.8144]
[1728376221962,3.9943,2429.9,2429.7,0.4108]
[1728376222164,3.21,2429.8,2429.5,4.0352]
[1728376222376,3.62167,2429.8,2429.5,4.0454]
[1728376222562,0.41168,2429.7,2429.5,4.45709]
[1728376222776,0.41168,2429.7,2429.5,4.4571]
[1728376223165,0.41168,2429.7,2429.5,1.2493]
[1728376223364,0.41169,2429.6,2429.4,0.41172]
[1728376223574,0.4166,2429.5,2429.4,0.41172]
[1728376223765,0.8157,2429.5,2429.4,0.41172]
[1728376224572,1.22741,2429.5,2429.2,4.4357]
[1728376224873,3.21,2429.4,2429.2,3.6297]
[1728376225072,0.41174,2429.3,2429.2,3.2078]
[1728376225977,0.41176,2429.2,2428.8,0.41182]
[1728376226169,3.62176,2429.2,2428.8,1.19072]
[1728376226371,3.21,2429.2,2428.8,1.19072]
[1728376226569,0.83198,2429.1,2428.8,0.7789]
[1728376226770,0.4104,2429.0,2428.8,0.7789]
[1728376227584,0.8222,2429.0,2428.8,0.7789]
[1728376227877,0.4104,2429.0,2428.8,0.7789]
[1728376228071,0.41181,2428.9,2428.8,0.7789]
[1728376228270,0.4104,2429.0,2428.8,0.7789]
[1728376228271,0.8222,2429.0,2428.8,0.7789]
[1728376230172,0.4104,2429.0,2428.8,0.7789]
[1728376230375,0.4202,2429.1,2428.9,0.41181]
[1728376230588,0.4202,2429.1,2428.8,0.7789]
[1728376231076,0.4202,2429.1,2428.9,0.4118]
[1728376231480,0.83198,2429.1,2428.8,1.19072]
[1728376231682,0.4066,2429.0,2428.8,1.19072]
[1728376231981,0.4066,2429.0,2428.9,0.41181]
[1728376233779,0.4066,2429.0,2428.8,1.19071]
[1728376234180,0.4066,2429.0,2428.9,0.41181]
[1728376234778,0.4202,2429.1,2428.9,0.41181]
[1728376238781,0.83197,2429.1,2428.9,0.41181]
[1728376239381,0.4202,2429.1,2428.8,1.19071]
[1728376239978,0.83198,2429.1,2428.8,1.19071]
[1728376240790,0.4202,2429.1,2428.8,0.7789]
[1728376241283,0.4202,2429.1,2428.9,0.4118]
[1728376242286,0.83198,2429.1,2428.9,0.4118]
[1728376242494,0.83198,2429.1,2428.8,1.19071]
[1728376244787,0.41179,2429.0,2428.8,1.19071]
[1728376245390,0.83198,2429.1,2428.8,1.19071]
[1728376246494,0.41179,2429.0,2428.8,1.19071]
[1728376247294,0.4202,2429.1,2428.9,0.4118]
[1728376247795,0.83198,2429.1,2428.9,0.4118]
[1728376247997,0.394,2429.2,2428.8,2.2589]
[1728376248187,4.6878,2429.8,2429.1,4.6878]
[1728376248387,4.6878,2429.8,2429.6,0.41169]
[1728376248588,1.48,2429.8,2429.6,0.41169]
[1728376248793,1.89166,2429.8,2429.5,0.41169]
[1728376249293,1.89166,2429.8,2429.6,0.4096]
[1728376249492,0.41167,2429.7,2429.6,0.4096]
[1728376249693,1.48,2429.8,2429.6,0.4096]
[1728376250194,2.556778,2430.0,2429.8,0.41165]
[1728376250493,2.556778,2430.0,2429.4,3.7207]
[1728376250494,0.41169,2429.6,2429.4,3.7207]
[1728376250697,0.4249,2429.5,2429.4,3.2078]
[1728376250895,0.821,2429.5,2429.4,3.2078]
[1728376251795,0.821,2429.5,2429.4,3.61952]
[1728376252004,0.4249,2429.5,2429.4,3.61952]
[1728376253495,3.21,2429.9,2429.4,13.3238]
[1728376253695,0.41164,2429.9,2429.6,0.41168]
[1728376253903,0.41164,2429.9,2429.5,0.4149]
[1728376253904,0.245078,2430.0,2429.5,0.4149]
[1728376254207,1.21232,2430.1,2429.7,0.41166]
[1728376254498,1.21232,2430.1,2429.8,0.4061]
[1728376254902,0.8007,2430.1,2429.8,0.4061]
[1728376255097,0.8007,2430.1,2429.8,0.81774]
[1728376255290,1.21231,2430.1,2429.8,0.81774]
[1728376255494,1.45890098,2430.1,2429.8,0.81774]
[1728376255943,1.21231,2430.1,2429.8,0.81774]
[1728376256195,0.8007,2430.1,2429.9,0.41164]
[1728376257499,0.8007,2430.1,2429.8,0.4061]
[1728376257693,0.8007,2430.1,2429.9,0.41164]
[1728376260607,7.3252,2430.0,2429.4,3.2078]
[1728376260907,0.4117,2429.6,2429.3,1.31023]
[1728376261228,0.4117,2429.6,2429.3,1.21423]
[1728376261229,0.8088,2429.5,2429.3,1.21423]
[1728376261900,1.22051,2429.5,2429.3,0.8025]
[1728376262506,0.4085,2429.5,2429.3,0.8025]
[1728376262805,0.4117,2429.6,2429.3,1.21423]
[1728376263301,0.41168,2429.7,2429.3,0.8025]
[1728376263504,0.41169,2429.6,2429.3,1.21423]
[1728376264403,0.7974,2429.8,2429.3,1.21423]
[1728376264404,0.41168,2429.7,2429.3,1.21423]
[1728376264604,0.41168,2429.7,2429.4,0.41172]
[1728376265598,0.41158,2430.3,2429.9,0.41162]
[1728376265793,0.41158,2430.3,2430.0,1.212]
[1728376265996,3.45513847,2430.4,2430.0,1.212]
[1728376266198,0.4116,2430.2,2430.0,1.212]
[1728376266796,0.4116,2430.1,2430.0,1.212]
[1728376267205,0.4116,2430.1,2429.7,1.212]
[1728376267504,0.41164,2429.9,2429.7,1.212]
[1728376267706,0.41165,2429.8,2429.7,0.4038]